[Event "FIDE World Rapid Chess Championship 2021"]
[White "Santos Latasa, Jaime"]
[Black "Peng, Li Min"]
[WhiteFideId "2293307"]
[BlackFideId "14112620"]
[WhiteElo "2618"]
[BlackElo "2411"]
[Result "1-0"]
[Round "02"]
[TimeControl "900+10"]
[Date "2021.12.26"]
[WhiteClock "0:00:44"]
[BlackClock "0:00:00"]

1. e4 {[%clk 0:00:00]}  Nc6 {[%clk 0:00:00]} 2. Nf3 {[%clk 0:00:00]}  d5 {[%clk 0:00:00]} 3. exd5 {[%clk 0:00:00]}  Qxd5 {[%clk 0:00:00]} 4. Nc3 {[%clk 0:00:00]}  Qh5 {[%clk 0:00:00]} 5. Nb5 {[%clk 0:00:00]}  Kd8 {[%clk 0:00:00]} 6. d4 {[%clk 0:00:00]}  Bg4 {[%clk 0:00:00]} 7. Bf4 {[%clk 0:00:00]}  a6 {[%clk 0:00:00]} 8. Nc3 {[%clk 0:00:00]}  Bxf3 {[%clk 0:00:00]} 9. Qxf3 {[%clk 0:00:00]}  Qxf3 {[%clk 0:00:00]} 10. gxf3 {[%clk 0:00:00]}  Nf6 {[%clk 0:00:00]} 11. O-O-O {[%clk 0:00:00]}  g6 {[%clk 0:14:07]} 12. Bc4 {[%clk 0:00:00]}  Nh5 {[%clk 0:00:00]} 13. Bg5 {[%clk 0:00:00]}  f6 {[%clk 0:00:00]} 14. Be3 {[%clk 0:00:00]}  f5 {[%clk 0:00:00]} 15. Rhe1 {[%clk 0:00:00]}  Bg7 {[%clk 0:00:00]} 16. Na4 {[%clk 0:00:00]}  Kc8 {[%clk 0:00:00]} 17. Nc5 {[%clk 0:00:00]}  f4 {[%clk 0:00:00]} 18. Be6+ {[%clk 0:00:00]}  Kb8 {[%clk 0:00:00]} 19. Bd2 {[%clk 0:00:00]}  Bxd4 {[%clk 0:00:00]} 20. Nd3 {[%clk 0:00:00]}  Rd8 {[%clk 0:00:00]} 21. c3 {[%clk 0:03:23]}  Bb6 {[%clk 0:00:00]} 22. Kc2 {[%clk 0:00:00]}  Ka7 {[%clk 0:00:00]} 23. b4 {[%clk 0:00:00]}  Rd6 {[%clk 0:00:00]} 24. a4 {[%clk 0:00:00]}  Rad8 {[%clk 0:00:00]} 25. Bc1 {[%clk 0:00:00]}  Be3 {[%clk 0:00:00]} 26. fxe3 {[%clk 0:03:06]}  Rxe6 {[%clk 0:00:56]} 27. e4 {[%clk 0:03:06]}  Ne5 {[%clk 0:00:00]} 28. Nxe5 {[%clk 0:03:06]}  Rxd1 {[%clk 0:00:56]} 29. Rxd1 {[%clk 0:03:06]}  Rxe5 {[%clk 0:00:56]} 30. Rd7 {[%clk 0:02:39]}  Kb6 {[%clk 0:00:00]} 31. h4 {[%clk 0:02:39]}  Kc6 {[%clk 0:00:00]} 32. Rd8 {[%clk 0:02:39]}  b6 {[%clk 0:00:00]} 33. c4 {[%clk 0:02:39]}  Nf6 {[%clk 0:00:00]} 34. Bxf4 {[%clk 0:02:39]}  Rh5 {[%clk 0:00:00]} 35. Rc8 {[%clk 0:02:01]}  e5 {[%clk 0:00:00]} 36. Bg5 {[%clk 0:02:01]}  Nd7 {[%clk 0:00:00]} 37. Bd8 {[%clk 0:02:01]}  Kd6 {[%clk 0:00:00]} 38. Bxc7+ {[%clk 0:02:01]}  Ke6 {[%clk 0:00:00]} 39. Bd8 {[%clk 0:02:01]}  h6 {[%clk 0:00:00]} 40. Kd3 {[%clk 0:02:01]}  g5 {[%clk 0:00:00]} 41. hxg5 {[%clk 0:02:01]}  hxg5 {[%clk 0:00:00]} 42. Bxb6 {[%clk 0:02:01]}  Rh3 {[%clk 0:00:00]} 43. Rc6+ {[%clk 0:00:44]}  Ke7 {[%clk 0:00:00]} 44. Ke2 {[%clk 0:00:44]}  g4 {[%clk 0:00:00]} 45. fxg4 {[%clk 0:00:44]}  Nf6 {[%clk 0:00:00]} 46. Bd8+ {[%clk 0:00:44]} 1-0


[Site "http://www.Chess.com"]

[Event "FIDE World Rapid Chess Championship 2021"]
[White "Hovhannisyan, Robert"]
[Black "Thybo, Jesper Sondergaard"]
[WhiteFideId "13302507"]
[BlackFideId "1438832"]
[WhiteElo "2613"]
[BlackElo "2401"]
[Result "1-0"]
[Round "02"]
[TimeControl "900+10"]
[Date "2021.12.26"]
[WhiteClock "0:00:54"]
[BlackClock "0:00:43"]

1. e4 {[%clk 0:15:18]}  e5 {[%clk 0:15:18]} 2. Nf3 {[%clk 0:15:26]}  Nc6 {[%clk 0:15:26]} 3. Bb5 {[%clk 0:15:30]}  Nf6 {[%clk 0:15:33]} 4. O-O {[%clk 0:15:37]}  Nxe4 {[%clk 0:15:36]} 5. d4 {[%clk 0:15:43]}  Nd6 {[%clk 0:15:41]} 6. Bxc6 {[%clk 0:15:50]}  dxc6 {[%clk 0:15:49]} 7. dxe5 {[%clk 0:15:58]}  Nf5 {[%clk 0:15:56]} 8. Qxd8+ {[%clk 0:16:05]}  Kxd8 {[%clk 0:16:03]} 9. Rd1+ {[%clk 0:16:14]}  Ke8 {[%clk 0:16:07]} 10. Nc3 {[%clk 0:16:20]}  a5 {[%clk 0:15:55]} 11. a4 {[%clk 0:15:28]}  Bb4 {[%clk 0:14:59]} 12. Ne2 {[%clk 0:14:54]}  h6 {[%clk 0:13:33]} 13. h3 {[%clk 0:14:27]}  Be7 {[%clk 0:13:03]} 14. g4 {[%clk 0:14:00]}  Nh4 {[%clk 0:12:56]} 15. Nxh4 {[%clk 0:14:08]}  Bxh4 {[%clk 0:13:04]} 16. Kg2 {[%clk 0:14:00]}  Be7 {[%clk 0:12:12]} 17. Be3 {[%clk 0:13:32]}  g5 {[%clk 0:12:12]} 18. Nd4 {[%clk 0:11:38]}  f6 {[%clk 0:06:33]} 19. exf6 {[%clk 0:06:10]}  Bxf6 {[%clk 0:06:40]} 20. Rd3 {[%clk 0:06:10]}  Kf7 {[%clk 0:05:15]} 21. Rad1 {[%clk 0:06:16]}  Rd8 {[%clk 0:04:31]} 22. b3 {[%clk 0:06:16]}  Kg6 {[%clk 0:04:11]} 23. f3 {[%clk 0:05:26]}  Re8 {[%clk 0:03:34]} 24. Bf2 {[%clk 0:05:14]}  Re7 {[%clk 0:02:16]} 25. R1d2 {[%clk 0:05:26]}  Bd7 {[%clk 0:01:52]} 26. Ne2 {[%clk 0:03:01]}  Be6 {[%clk 0:01:52]} 27. h4 {[%clk 0:02:27]}  Rae8 {[%clk 0:01:38]} 28. h5+ {[%clk 0:02:26]}  Kf7 {[%clk 0:01:46]} 29. Bc5 {[%clk 0:02:27]}  Bf5 {[%clk 0:01:46]} 30. Bxe7 {[%clk 0:02:27]}  Bxd3 {[%clk 0:01:46]} 31. Rxd3 {[%clk 0:01:59]}  Bxe7 {[%clk 0:00:41]} 32. Rd7 {[%clk 0:01:59]}  Rc8 {[%clk 0:00:41]} 33. Ng3 {[%clk 0:01:59]}  Ke6 {[%clk 0:00:41]} 34. Rd2 {[%clk 0:01:59]}  Bb4 {[%clk 0:00:41]} 35. Re2+ {[%clk 0:01:59]}  Kd5 {[%clk 0:00:41]} 36. Nf5 {[%clk 0:01:59]}  Bf8 {[%clk 0:00:41]} 37. Re4 {[%clk 0:01:59]}  b5 {[%clk 0:00:53]} 38. Kf2 {[%clk 0:00:58]}  Rb8 {[%clk 0:00:53]} 39. Ke2 {[%clk 0:00:58]}  Ra8 {[%clk 0:00:53]} 40. Kd3 {[%clk 0:00:58]}  Rb8 {[%clk 0:00:53]} 41. Rd4+ {[%clk 0:00:58]}  Ke5 {[%clk 0:00:53]} 42. Re4+ {[%clk 0:00:58]}  Kd5 {[%clk 0:00:53]} 43. Kc3 {[%clk 0:00:58]}  Bb4+ {[%clk 0:00:53]} 44. Kb2 {[%clk 0:00:58]}  bxa4 {[%clk 0:00:53]} 45. c4+ {[%clk 0:00:58]}  Kc5 {[%clk 0:00:53]} 46. Re5+ {[%clk 0:00:58]}  Kb6 {[%clk 0:00:45]} 47. bxa4 {[%clk 0:00:50]}  Bd6 {[%clk 0:00:45]} 48. Re6 {[%clk 0:00:50]}  Kc5+ {[%clk 0:00:45]} 49. Kc3 {[%clk 0:00:50]}  Rb4 {[%clk 0:00:45]} 50. Nxd6 {[%clk 0:00:50]}  cxd6 {[%clk 0:00:45]} 51. Rxh6 {[%clk 0:00:50]}  Rxa4 {[%clk 0:00:45]} 52. Kd3 {[%clk 0:00:50]}  Rxc4 {[%clk 0:00:26]} 53. Rg6 {[%clk 0:00:33]}  Rd4+ {[%clk 0:00:26]} 54. Kc2 {[%clk 0:00:33]}  Rc4+ {[%clk 0:00:26]} 55. Kd3 {[%clk 0:00:33]}  Rd4+ {[%clk 0:00:26]} 56. Ke3 {[%clk 0:00:36]}  Rb4 {[%clk 0:00:26]} 57. h6 {[%clk 0:00:33]}  Rb3+ {[%clk 0:00:26]} 58. Kf2 {[%clk 0:00:24]}  Rb2+ {[%clk 0:00:30]} 59. Kg3 {[%clk 0:00:33]}  Rb8 {[%clk 0:00:26]} 60. Rxg5+ {[%clk 0:00:33]}  d5 {[%clk 0:00:26]} 61. h7 {[%clk 0:00:33]}  Rh8 {[%clk 0:00:26]} 62. Rg7 {[%clk 0:00:33]}  a4 {[%clk 0:00:17]} 63. g5 {[%clk 0:00:44]}  a3 {[%clk 0:00:47]} 64. g6 {[%clk 0:00:35]}  Kb6 {[%clk 0:00:18]} 65. Rg8 {[%clk 0:00:39]}  a2 {[%clk 0:00:13]} 66. Rxh8 {[%clk 0:00:35]}  a1=Q {[%clk 0:00:47]} 67. Rb8+ {[%clk 0:00:35]}  Ka7 {[%clk 0:00:47]} 68. h8=Q {[%clk 0:00:35]}  Qg1+ {[%clk 0:00:28]} 69. Kf4 {[%clk 0:01:09]}  Qc1+ {[%clk 0:00:26]} 70. Kf5 {[%clk 0:01:12]}  Qc2+ {[%clk 0:00:30]} 71. Kf6 {[%clk 0:00:35]}  Qc3+ {[%clk 0:00:47]} 72. Kf7 {[%clk 0:01:08]}  Qxf3+ {[%clk 0:00:43]} 73. Qf6 {[%clk 0:00:54]} 1-0


[Site "http://www.Chess.com"]

[Event "FIDE World Rapid Chess Championship 2021"]
[White "Costachi, Mihnea"]
[Black "Efimenko, Zahar"]
[WhiteFideId "1217518"]
[BlackFideId "14107201"]
[WhiteElo "2443"]
[BlackElo "2609"]
[Result "1/2-1/2"]
[Round "02"]
[TimeControl "900+10"]
[Date "2021.12.26"]
[WhiteClock "0:00:19"]
[BlackClock "0:00:41"]

1. d4 {[%clk 0:15:18]}  d6 {[%clk 0:15:03]} 2. c4 {[%clk 0:15:14]}  e5 {[%clk 0:15:10]} 3. Nf3 {[%clk 0:15:04]}  e4 {[%clk 0:15:16]} 4. Ng5 {[%clk 0:15:27]}  f5 {[%clk 0:15:23]} 5. g3 {[%clk 0:15:29]}  Be7 {[%clk 0:15:26]} 6. Nh3 {[%clk 0:15:36]}  Nf6 {[%clk 0:15:29]} 7. Bg2 {[%clk 0:15:42]}  c6 {[%clk 0:15:31]} 8. O-O {[%clk 0:15:16]}  d5 {[%clk 0:15:36]} 9. b3 {[%clk 0:14:55]}  O-O {[%clk 0:15:33]} 10. Ba3 {[%clk 0:14:31]}  Bxa3 {[%clk 0:15:33]} 11. Nxa3 {[%clk 0:14:39]}  Na6 {[%clk 0:15:36]} 12. Qd2 {[%clk 0:12:26]}  Qe7 {[%clk 0:15:38]} 13. Nc2 {[%clk 0:12:27]}  Be6 {[%clk 0:15:28]} 14. Ne3 {[%clk 0:11:16]}  g6 {[%clk 0:14:43]} 15. f3 {[%clk 0:07:42]}  Rad8 {[%clk 0:14:11]} 16. c5 {[%clk 0:07:40]}  Nc7 {[%clk 0:13:24]} 17. a4 {[%clk 0:07:27]}  a6 {[%clk 0:13:07]} 18. Nd1 {[%clk 0:07:06]}  Kh8 {[%clk 0:12:25]} 19. b4 {[%clk 0:06:52]}  Bd7 {[%clk 0:12:08]} 20. Nc3 {[%clk 0:05:51]}  Rde8 {[%clk 0:11:26]} 21. f4 {[%clk 0:04:49]}  e3 {[%clk 0:11:06]} 22. Qd3 {[%clk 0:04:48]}  h6 {[%clk 0:10:16]} 23. Nd1 {[%clk 0:04:18]}  Ng4 {[%clk 0:10:05]} 24. Nb2 {[%clk 0:02:20]}  Qf6 {[%clk 0:09:14]} 25. Qc3 {[%clk 0:02:29]}  Re4 {[%clk 0:06:21]} 26. Bxe4 {[%clk 0:02:17]}  fxe4 {[%clk 0:06:29]} 27. f5 {[%clk 0:02:29]}  Bxf5 {[%clk 0:06:28]} 28. Nf4 {[%clk 0:02:29]}  g5 {[%clk 0:06:28]} 29. Ng2 {[%clk 0:01:23]}  Ne6 {[%clk 0:06:28]} 30. Rad1 {[%clk 0:00:39]}  Nf2 {[%clk 0:04:33]} 31. Qxe3 {[%clk 0:00:39]}  Nxd1 {[%clk 0:04:33]} 32. Nxd1 {[%clk 0:00:39]}  Qg7 {[%clk 0:04:33]} 33. Nc3 {[%clk 0:00:39]}  Bh3 {[%clk 0:03:51]} 34. Rxf8+ {[%clk 0:00:28]}  Qxf8 {[%clk 0:03:51]} 35. Qd2 {[%clk 0:00:28]}  Bxg2 {[%clk 0:03:51]} 36. Kxg2 {[%clk 0:00:28]}  Qf6 {[%clk 0:03:51]} 37. e3 {[%clk 0:00:28]}  Qf3+ {[%clk 0:03:51]} 38. Kg1 {[%clk 0:00:28]}  g4 {[%clk 0:03:51]} 39. Qe2 {[%clk 0:00:34]}  Kg7 {[%clk 0:01:58]} 40. Qxf3 {[%clk 0:00:34]}  exf3 {[%clk 0:01:58]} 41. b5 {[%clk 0:00:34]}  axb5 {[%clk 0:01:58]} 42. axb5 {[%clk 0:00:34]}  Kf7 {[%clk 0:01:58]} 43. b6 {[%clk 0:00:34]}  Ke8 {[%clk 0:01:58]} 44. Na2 {[%clk 0:00:19]}  Kd7 {[%clk 0:00:41]} 45. Nb4 {[%clk 0:00:19]} 1/2-1/2


[Site "http://www.Chess.com"]

[Event "FIDE World Rapid Chess Championship 2021"]
[White "Timofeev, Artyom"]
[Black "Vastrukhin, Oleg"]
[WhiteFideId "4140419"]
[BlackFideId "4192770"]
[WhiteElo "2591"]
[BlackElo "2382"]
[Result "0-1"]
[Round "02"]
[TimeControl "900+10"]
[Date "2021.12.26"]
[WhiteClock "0:00:14"]
[BlackClock "0:00:51"]

1. c4 {[%clk 0:15:16]}  g6 {[%clk 0:15:18]} 2. Nc3 {[%clk 0:14:46]}  Bg7 {[%clk 0:15:25]} 3. g3 {[%clk 0:14:53]}  c5 {[%clk 0:15:31]} 4. Bg2 {[%clk 0:15:00]}  Nc6 {[%clk 0:15:38]} 5. Nf3 {[%clk 0:15:04]}  e6 {[%clk 0:15:44]} 6. d3 {[%clk 0:14:52]}  Nge7 {[%clk 0:15:48]} 7. Bf4 {[%clk 0:14:58]}  d6 {[%clk 0:15:39]} 8. Qc1 {[%clk 0:14:57]}  h6 {[%clk 0:15:22]} 9. O-O {[%clk 0:14:51]}  b6 {[%clk 0:14:41]} 10. a3 {[%clk 0:13:10]}  Bb7 {[%clk 0:14:26]} 11. Rb1 {[%clk 0:13:14]}  g5 {[%clk 0:13:42]} 12. Bd2 {[%clk 0:13:19]}  Qd7 {[%clk 0:12:50]} 13. b4 {[%clk 0:13:19]}  Ng6 {[%clk 0:12:35]} 14. bxc5 {[%clk 0:10:37]}  dxc5 {[%clk 0:12:42]} 15. a4 {[%clk 0:10:45]}  g4 {[%clk 0:10:33]} 16. Ne1 {[%clk 0:12:29]}  h5 {[%clk 0:10:42]} 17. Ne4 {[%clk 0:09:55]}  Nd4 {[%clk 0:09:51]} 18. Qd1 {[%clk 0:10:01]}  Bc6 {[%clk 0:09:59]} 19. Bc3 {[%clk 0:10:00]}  Bxa4 {[%clk 0:08:15]} 20. Qd2 {[%clk 0:10:07]}  Bc6 {[%clk 0:08:10]} 21. e3 {[%clk 0:08:09]}  f5 {[%clk 0:07:57]} 22. Ng5 {[%clk 0:06:51]}  Ne2+ {[%clk 0:07:14]} 23. Qxe2 {[%clk 0:06:57]}  Bxc3 {[%clk 0:07:22]} 24. Bxc6 {[%clk 0:06:09]}  Qxc6 {[%clk 0:07:31]} 25. d4 {[%clk 0:06:18]}  Bxe1 {[%clk 0:07:03]} 26. Rfxe1 {[%clk 0:06:18]}  O-O {[%clk 0:07:08]} 27. h4 {[%clk 0:03:59]}  Rad8 {[%clk 0:07:08]} 28. Qb2 {[%clk 0:04:04]}  Qd6 {[%clk 0:07:08]} 29. Rbd1 {[%clk 0:02:40]}  Qe7 {[%clk 0:04:54]} 30. dxc5 {[%clk 0:04:04]}  bxc5 {[%clk 0:03:48]} 31. Rxd8 {[%clk 0:02:26]}  Rxd8 {[%clk 0:03:56]} 32. Ra1 {[%clk 0:02:34]}  Rd7 {[%clk 0:03:07]} 33. Ra6 {[%clk 0:02:26]}  Rb7 {[%clk 0:03:56]} 34. Qa1 {[%clk 0:02:34]}  Nf8 {[%clk 0:03:56]} 35. Kh2 {[%clk 0:02:34]}  Qg7 {[%clk 0:03:56]} 36. Qxg7+ {[%clk 0:02:03]}  Kxg7 {[%clk 0:02:29]} 37. Nxe6+ {[%clk 0:00:57]}  Nxe6 {[%clk 0:02:47]} 38. Rxe6 {[%clk 0:01:06]}  a5 {[%clk 0:02:29]} 39. Ra6 {[%clk 0:02:03]}  Rb4 {[%clk 0:02:29]} 40. Rxa5 {[%clk 0:02:03]}  Rxc4 {[%clk 0:02:29]} 41. Ra7+ {[%clk 0:02:03]}  Kf6 {[%clk 0:02:29]} 42. Ra6+ {[%clk 0:02:03]}  Ke5 {[%clk 0:02:12]} 43. Rh6 {[%clk 0:01:39]}  Rb4 {[%clk 0:02:12]} 44. Rxh5 {[%clk 0:01:39]}  c4 {[%clk 0:02:12]} 45. Rh8 {[%clk 0:01:39]}  Ke4 {[%clk 0:02:12]} 46. h5 {[%clk 0:01:55]}  c3 {[%clk 0:00:55]} 47. Rc8 {[%clk 0:01:55]}  Kd3 {[%clk 0:00:55]} 48. Rd8+ {[%clk 0:01:55]}  Ke2 {[%clk 0:00:55]} 49. Rc8 {[%clk 0:01:55]}  Kd2 {[%clk 0:00:55]} 50. Rd8+ {[%clk 0:01:55]}  Kc1 {[%clk 0:00:55]} 51. h6 {[%clk 0:01:55]}  Rb6 {[%clk 0:00:55]} 52. Rh8 {[%clk 0:01:55]}  c2 {[%clk 0:00:55]} 53. h7 {[%clk 0:00:14]}  Kb1 {[%clk 0:00:51]} 54. Rc8 {[%clk 0:00:14]}  Rh6+ {[%clk 0:00:51]} 55. Kg2 {[%clk 0:00:14]}  c1=Q {[%clk 0:00:51]} 56. h8=Q {[%clk 0:00:14]}  Qh1# {[%clk 0:00:51]} 0-1


[Site "http://www.Chess.com"]

[Event "FIDE World Rapid Chess Championship 2021"]
[White "Sankalp, Gupta"]
[Black "Halkias, Stelios"]
[WhiteFideId "5097010"]
[BlackFideId "4201809"]
[WhiteElo "2266"]
[BlackElo "2576"]
[Result "0-1"]
[Round "02"]
[TimeControl "900+10"]
[Date "2021.12.26"]
[WhiteClock "0:00:44"]
[BlackClock "0:00:31"]

1. e4 {[%clk 0:15:00]}  c5 {[%clk 0:15:00]} 2. Nf3 {[%clk 0:15:00]}  Nc6 {[%clk 0:15:00]} 3. Bb5 {[%clk 0:15:00]}  g6 {[%clk 0:15:00]} 4. O-O {[%clk 0:15:00]}  Bg7 {[%clk 0:15:00]} 5. c3 {[%clk 0:15:00]}  Nf6 {[%clk 0:15:00]} 6. Re1 {[%clk 0:15:00]}  O-O {[%clk 0:15:00]} 7. d4 {[%clk 0:15:00]}  d5 {[%clk 0:15:00]} 8. e5 {[%clk 0:15:00]}  Ne4 {[%clk 0:15:00]} 9. Bxc6 {[%clk 0:15:00]}  bxc6 {[%clk 0:15:00]} 10. Be3 {[%clk 0:15:00]}  Rb8 {[%clk 0:15:00]} 11. b3 {[%clk 0:15:00]}  f6 {[%clk 0:15:00]} 12. exf6 {[%clk 0:15:00]}  exf6 {[%clk 0:15:00]} 13. dxc5 {[%clk 0:15:00]}  Bg4 {[%clk 0:15:00]} 14. Bd4 {[%clk 0:15:00]}  Rb7 {[%clk 0:15:00]} 15. h3 {[%clk 0:15:00]}  Bxf3 {[%clk 0:15:00]} 16. Qxf3 {[%clk 0:15:00]}  f5 {[%clk 0:15:00]} 17. Na3 {[%clk 0:15:00]}  g5 {[%clk 0:15:00]} 18. Nc2 {[%clk 0:15:00]}  f4 {[%clk 0:15:00]} 19. Qg4 {[%clk 0:15:00]}  Qe8 {[%clk 0:15:00]} 20. Bxg7 {[%clk 0:15:00]}  Rxg7 {[%clk 0:15:00]} 21. Nd4 {[%clk 0:15:00]}  Re7 {[%clk 0:15:00]} 22. Nf5 {[%clk 0:10:02]}  Re5 {[%clk 0:01:34]} 23. Rxe4 {[%clk 0:10:02]}  Rxe4 {[%clk 0:01:24]} 24. Qxg5+ {[%clk 0:07:41]}  Qg6 {[%clk 0:01:24]} 25. Ne7+ {[%clk 0:07:41]}  Rxe7 {[%clk 0:01:24]} 26. Qxe7 {[%clk 0:07:41]}  f3 {[%clk 0:01:24]} 27. g3 {[%clk 0:07:41]}  Re8 {[%clk 0:01:24]} 28. Qd7 {[%clk 0:07:29]}  Re2 {[%clk 0:01:33]} 29. a4 {[%clk 0:07:29]}  Qe4 {[%clk 0:01:19]} 30. Rf1 {[%clk 0:03:58]}  h5 {[%clk 0:01:19]} 31. Qxc6 {[%clk 0:02:30]}  h4 {[%clk 0:00:14]} 32. Qc8+ {[%clk 0:02:30]}  Kh7 {[%clk 0:00:14]} 33. Qd7+ {[%clk 0:02:30]}  Kh6 {[%clk 0:00:14]} 34. Qd6+ {[%clk 0:00:44]}  Kh7 {[%clk 0:00:31]} 35. Qd7+ {[%clk 0:00:44]}  Kh6 {[%clk 0:00:31]} 36. Qg4 {[%clk 0:00:44]}  hxg3 {[%clk 0:00:31]} 37. Qxg3 {[%clk 0:00:44]}  Rc2 {[%clk 0:00:31]} 38. c6 {[%clk 0:00:44]}  Rxc3 {[%clk 0:00:31]} 39. Qd6+ {[%clk 0:00:44]}  Kh5 {[%clk 0:00:31]} 40. Rd1 {[%clk 0:00:44]}  Rd3 {[%clk 0:00:31]} 41. Rxd3 {[%clk 0:00:44]}  Qe1+ {[%clk 0:00:31]} 0-1


[Site "http://www.Chess.com"]

[Event "FIDE World Rapid Chess Championship 2021"]
[White "Jumabayev, Rinat"]
[Black "Ivic, Velimir"]
[WhiteFideId "13702661"]
[BlackFideId "950122"]
[WhiteElo "2562"]
[BlackElo "2357"]
[Result "1/2-1/2"]
[Round "02"]
[TimeControl "900+10"]
[Date "2021.12.26"]
[WhiteClock "0:00:41"]
[BlackClock "0:00:26"]

1. d4 {[%clk 0:15:00]}  Nf6 {[%clk 0:15:00]} 2. Nf3 {[%clk 0:15:00]}  g6 {[%clk 0:15:00]} 3. g3 {[%clk 0:15:00]}  Bg7 {[%clk 0:15:00]} 4. Bg2 {[%clk 0:15:00]}  d5 {[%clk 0:15:00]} 5. c4 {[%clk 0:15:00]}  c6 {[%clk 0:15:00]} 6. O-O {[%clk 0:15:00]}  O-O {[%clk 0:15:00]} 7. Qb3 {[%clk 0:15:00]}  a5 {[%clk 0:15:00]} 8. cxd5 {[%clk 0:15:00]}  a4 {[%clk 0:15:00]} 9. Qd1 {[%clk 0:15:00]}  Nxd5 {[%clk 0:15:00]} 10. h3 {[%clk 0:15:00]}  c5 {[%clk 0:15:00]} 11. e4 {[%clk 0:15:00]}  Nc7 {[%clk 0:15:00]} 12. d5 {[%clk 0:15:00]}  a3 {[%clk 0:15:00]} 13. Nc3 {[%clk 0:15:00]}  b5 {[%clk 0:15:00]} 14. Rb1 {[%clk 0:15:00]}  b4 {[%clk 0:15:00]} 15. Na4 {[%clk 0:15:00]}  Ba6 {[%clk 0:15:00]} 16. Re1 {[%clk 0:15:00]}  Nd7 {[%clk 0:15:00]} 17. Be3 {[%clk 0:15:00]}  axb2 {[%clk 0:15:00]} 18. Nxc5 {[%clk 0:15:00]}  Nb5 {[%clk 0:15:00]} 19. Qb3 {[%clk 0:15:00]}  Na3 {[%clk 0:15:00]} 20. Rxb2 {[%clk 0:15:00]}  Bxb2 {[%clk 0:15:00]} 21. Qxb2 {[%clk 0:15:00]}  Nc4 {[%clk 0:15:00]} 22. Qxb4 {[%clk 0:15:00]}  Nxe3 {[%clk 0:15:00]} 23. Rxe3 {[%clk 0:15:00]}  Rb8 {[%clk 0:15:00]} 24. Qd4 {[%clk 0:15:00]}  Rb1+ {[%clk 0:15:00]} 25. Kh2 {[%clk 0:15:00]}  Nxc5 {[%clk 0:15:00]} 26. Qxc5 {[%clk 0:07:00]}  Qd6 {[%clk 0:05:33]} 27. Qxd6 {[%clk 0:07:09]}  exd6 {[%clk 0:04:45]} 28. Ra3 {[%clk 0:07:09]}  Ra8 {[%clk 0:04:45]} 29. g4 {[%clk 0:04:46]}  Bb7 {[%clk 0:03:50]} 30. Rb3 {[%clk 0:04:46]}  Rxb3 {[%clk 0:03:50]} 31. axb3 {[%clk 0:04:46]}  f5 {[%clk 0:03:48]} 32. gxf5 {[%clk 0:02:00]}  gxf5 {[%clk 0:03:48]} 33. Nd4 {[%clk 0:02:00]}  fxe4 {[%clk 0:03:48]} 34. Bxe4 {[%clk 0:02:00]}  Kf7 {[%clk 0:03:48]} 35. Kg3 {[%clk 0:02:00]}  Kf6 {[%clk 0:03:48]} 36. Kf4 {[%clk 0:01:58]}  Ra2 {[%clk 0:02:20]} 37. f3 {[%clk 0:01:58]}  Rd2 {[%clk 0:02:20]} 38. Nf5 {[%clk 0:01:21]}  Bxd5 {[%clk 0:01:03]} 39. Nxd6 {[%clk 0:01:21]}  Bxb3 {[%clk 0:01:03]} 40. Nf5 {[%clk 0:01:21]}  Be6 {[%clk 0:01:03]} 41. Ng3 {[%clk 0:01:21]}  h6 {[%clk 0:01:03]} 42. Nh5+ {[%clk 0:01:21]}  Kf7 {[%clk 0:01:03]} 43. Kg3 {[%clk 0:01:21]}  Rd1 {[%clk 0:01:03]} 44. Nf4 {[%clk 0:01:21]}  Bc8 {[%clk 0:01:03]} 45. Kg2 {[%clk 0:00:36]}  Kf6 {[%clk 0:00:54]} 46. h4 {[%clk 0:00:36]}  Ke5 {[%clk 0:00:54]} 47. Ng6+ {[%clk 0:00:36]}  Kd4 {[%clk 0:00:54]} 48. Kf2 {[%clk 0:00:36]}  Rh1 {[%clk 0:00:54]} 49. Kg2 {[%clk 0:00:36]}  Rd1 {[%clk 0:00:54]} 50. Kf2 {[%clk 0:00:36]}  Rd2+ {[%clk 0:00:54]} 51. Kg3 {[%clk 0:00:36]}  Ke3 {[%clk 0:00:54]} 52. Ne5 {[%clk 0:00:36]}  Rd1 {[%clk 0:00:20]} 53. Kg2 {[%clk 0:00:25]}  h5 {[%clk 0:00:20]} 54. Nc4+ {[%clk 0:00:25]}  Kf4 {[%clk 0:00:20]} 55. Kf2 {[%clk 0:00:25]}  Be6 {[%clk 0:00:20]} 56. Na5 {[%clk 0:00:25]}  Rd2+ {[%clk 0:00:20]} 57. Ke1 {[%clk 0:00:25]}  Rh2 {[%clk 0:00:20]} 58. Nc6 {[%clk 0:00:25]}  Ke3 {[%clk 0:00:20]} 59. Kf1 {[%clk 0:00:25]}  Rxh4 {[%clk 0:00:20]} 60. Kg2 {[%clk 0:00:25]}  Rf4 {[%clk 0:00:20]} 61. Ne5 {[%clk 0:00:25]}  Rf8 {[%clk 0:00:20]} 62. Kg3 {[%clk 0:00:25]}  Rg8+ {[%clk 0:00:21]} 63. Kh4 {[%clk 0:00:43]}  Kd4 {[%clk 0:00:21]} 64. Ng6 {[%clk 0:00:43]}  Bf7 {[%clk 0:00:21]} 65. Kxh5 {[%clk 0:00:43]}  Ke3 {[%clk 0:00:21]} 66. Kg5 {[%clk 0:00:43]}  Bxg6 {[%clk 0:00:21]} 67. Bxg6 {[%clk 0:00:43]}  Kxf3 {[%clk 0:00:21]} 68. Kf5 {[%clk 0:00:43]}  Ra8 {[%clk 0:00:21]} 69. Ke5 {[%clk 0:00:43]}  Ra5+ {[%clk 0:00:21]} 70. Kd4 {[%clk 0:00:43]}  Kf4 {[%clk 0:00:21]} 71. Bc2 {[%clk 0:00:43]}  Ra8 {[%clk 0:00:21]} 72. Bd3 {[%clk 0:00:43]}  Rd8+ {[%clk 0:00:21]} 73. Kc3 {[%clk 0:00:43]}  Ke3 {[%clk 0:00:21]} 74. Bc2 {[%clk 0:00:43]}  Rc8+ {[%clk 0:00:21]} 75. Kb3 {[%clk 0:00:43]}  Kd2 {[%clk 0:00:21]} 76. Bf5 {[%clk 0:00:43]}  Rc5 {[%clk 0:00:21]} 77. Bg6 {[%clk 0:00:43]}  Ke3 {[%clk 0:01:19]} 78. Bh7 {[%clk 0:01:42]}  Kd4 {[%clk 0:01:19]} 79. Bg6 {[%clk 0:01:42]}  Rg5 {[%clk 0:01:19]} 80. Bh7 {[%clk 0:01:42]}  Rg3+ {[%clk 0:01:19]} 81. Kc2 {[%clk 0:01:42]}  Rc3+ {[%clk 0:01:19]} 82. Kb2 {[%clk 0:01:42]}  Rh3 {[%clk 0:01:19]} 83. Bg6 {[%clk 0:01:42]}  Rg3 {[%clk 0:01:19]} 84. Bf5 {[%clk 0:01:25]}  Rg5 {[%clk 0:00:35]} 85. Bh7 {[%clk 0:01:25]}  Kc4 {[%clk 0:00:35]} 86. Be4 {[%clk 0:01:25]}  Rh5 {[%clk 0:00:35]} 87. Bg6 {[%clk 0:01:25]}  Rh2+ {[%clk 0:00:35]} 88. Kb1 {[%clk 0:01:25]}  Kc3 {[%clk 0:00:35]} 89. Bf5 {[%clk 0:01:25]}  Rf2 {[%clk 0:00:35]} 90. Bh7 {[%clk 0:01:25]}  Rf7 {[%clk 0:00:26]} 91. Be4 {[%clk 0:00:41]}  Re7 {[%clk 0:00:26]} 92. Bf5 {[%clk 0:00:41]}  Rb7+ {[%clk 0:00:26]} 93. Ka2 {[%clk 0:00:41]}  Rb2+ {[%clk 0:00:26]} 94. Ka1 {[%clk 0:00:41]}  Rf2 {[%clk 0:00:26]} 95. Bh7 {[%clk 0:00:41]}  Kd4 {[%clk 0:00:26]} 1/2-1/2


[Site "http://www.Chess.com"]